Cogmind - Beta 14 @@@ ROGUE MODE // 2024.11.08 @ 21:09:12 Player: Thqwib Result: Destroyed by G-73 Enforcer with Phase Gun Performance ------------- Evolutions (9) 4500 Regions Visited (27) 5400 Robots Destroyed (173) 865 Value Destroyed (10845) 10845 Prototype IDs (10) 200 Alien Tech Used (0) 0 Bonus (5147) 5147 TOTAL SCORE: 26957 Bonus ------- High Alert Combat Kills 362 Follower Combat Kills 835 Entered Garrisons 1600 Used RIF Installer 2500 Friendly Fire -150 Cogmind --------- Core Integrity 0/1600 Matter 266/300 Energy 95/100 System Corruption 68% Temperature Cool (9) Movement Core (50) Location -1/Garrison Parts ------- > --- POWER (2) -------- (None) > --- PROPULSION (4) --- (None) > --- UTILITY (16) ----- Enhanced Optical Array Advanced Target Analyzer Hacking Suite Relay Coupler [Grunt] (36) Relay Coupler [Brawler] (31) Relay Coupler [Hunter] (16) > --- WEAPON (3) ------- (None) > --- INVENTORY (5) ---- Heavy Laser Phase Gun Helical Railgun Peak State ------------ > --- POWER ------------ Particle Reactor Micro Antimatter Reactor > --- PROPULSION ------- Armored Heavy Treads Armored Heavy Treads > --- UTILITY ---------- Advanced Heat Sink Advanced Heat Sink Advanced Heat Sink Large Storage Unit Enhanced Optical Array Advanced Sensor Array Advanced Signal Interpreter Advanced Signal Interpreter Improved Kinecellerator Graphene Brace Point Defense System Hacking Suite Improved Hacking Suite Advanced Hacking Suite Relay Coupler [NC] > --- WEAPON ----------- Phase Gun Compact HERF Cannon KE Penetrator > --- INVENTORY -------- Micro Antimatter Reactor Medium Treads Armored Heavy Treads Armored Heavy Treads Heavy Disruptor Cannon Advanced Datajack Improved Remote Datajack Advanced Remote Datajack Lance Lance [Rating: 148] Favorites ----------- Power Light Angular Momentum Engine Engine Light Angular Momentum Engine Power Core Fission Core Reactor Micro Antimatter Reactor Propulsion Carbon-fiber Leg Treads Armored Heavy Treads Leg Carbon-fiber Leg Wheel Armored Wheel Hover Unit Improved Antigrav System Flight Unit Q-thruster Utility Experimental Targeting Computer Device Advanced Heat Sink Storage Large Storage Unit Processor Experimental Targeting Computer Hackware Relay Coupler [Swarmer] Protection Improved Light Armor Plating Weapon Force Lance Energy Gun Plasma Rifle Energy Cannon Compact HERF Cannon Ballistic Gun Enhanced Autogun Ballistic Cannon Bore Cannon Launcher Long-range Missile Launcher Special Weapon Remote Datajack Impact Weapon Great Maul Piercing Weapon Force Lance Special Melee Weapon Datajack Build | -11 -10 -10 -9 -9 -8 -7 -7 -7 -7 -6 -6 -6 -6 -6 -6 -5 -5 -5 -5 -5 -4 -4 -3 -3 -2 -1 -1 ------- Run | Yrd Mat Min Mat Min Mat Fac Gar Fac Gar Fac Was Fac Gar Fac Gar Fac Gar Fac Upp Upp Fac Gar Res Gar Res Acc Gar Slots Evolved 18 | . . . 2 . 2 2 . . . 2 . . . . . 2 . . . . 2 . 2 . 2 2 . Power 1 | . . . . . . . . . . . . . . . . . . . . . . . 1 . . . . Propulsion 2 | . . . 1 . 1 . . . . . . . . . . . . . . . . . . . . . . Utility 14 | . . . 1 . 1 2 . . . 2 . . . . . 2 . . . . 2 . . . 2 2 . Weapon 1 | . . . . . . . . . . . . . . . . . . . . . . . 1 . . . . Parts Attached 492 | . 2 5 9 1 31 6 23 27 45 25 11 14 24 8 28 8 25 33 15 2 9 33 1 4 17 49 37 Power 52 | . . 1 2 . 4 . 4 2 3 1 1 2 5 . 2 2 2 2 3 . 1 1 . . 3 7 4 Engine 23 | . . 1 2 . 4 . . 2 2 1 . 2 4 . 1 1 2 1 . . . . . . . . . Core 12 | . . . . . . . 3 . 1 . . . 1 . 1 1 . . 3 . 1 1 . . . . . Reactor 17 | . . . . . . . 1 . . . 1 . . . . . . 1 . . . . . . 3 7 4 Propulsion 92 | . . . 4 1 14 . 5 5 12 4 . 3 4 1 4 1 2 5 3 . . 6 1 . 5 7 5 Treads 12 | . . . . . . . . . 2 . . . . . . . . . . . . . . . . 6 4 Leg 68 | . . . 4 1 10 . 5 5 10 4 . 3 4 1 4 1 2 5 3 . . 6 . . . . . Wheel 4 | . . . . . 4 . . . . . . . . . . . . . . . . . . . . . . Hover 3 | . . . . . . . . . . . . . . . . . . . . . . . 1 . 2 . . Flight 5 | . . . . . . . . . . . . . . . . . . . . . . . . . 3 1 1 Utility 141 | . 1 1 1 . 5 5 6 7 13 10 4 5 2 2 8 5 10 6 1 . 8 8 . 2 2 20 9 Device 71 | . . . 1 . 2 3 1 4 2 5 2 2 2 2 2 3 7 4 1 . 4 3 . 2 2 14 3 Storage 7 | . . . . . 1 . . 1 2 1 . . . . . 1 . . . . . . . . . 1 . Processor 14 | . 1 1 . . 1 . . 1 . 3 1 . . . . . 1 . . . 2 . . . . 2 1 Hackware 40 | . . . . . 1 2 4 . 8 1 . 2 . . 6 1 2 . . . 1 5 . . . 3 4 Protection 9 | . . . . . . . 1 1 1 . 1 1 . . . . . 2 . . 1 . . . . . 1 Artifact . | . . . . . . . . . . . . . . . . . . . . . . . . . . . . Weapon 207 | . 1 3 2 . 8 1 8 13 17 10 6 4 13 5 14 . 11 20 8 2 . 18 . 2 7 15 19 Energy Gun 56 | . 1 2 2 . 2 . . . 2 . . . 5 2 4 . 6 11 4 . . 4 . 1 1 3 6 Energy Cannon 7 | . . . . . . . . . . . . . . . . . . . . . . . . . . 5 2 Ballistic Gun 46 | . . . . . 4 . 1 5 6 5 3 2 3 1 1 . . 3 . 1 . 6 . . . 2 3 Ballistic Cannon 11 | . . . . . . 1 4 . . . . 1 2 . . . . . 1 . . 1 . . . 1 . Launcher 4 | . . 1 . . . . 1 . . 1 . . . . . . 1 . . . . . . . . . . Special Weapon 36 | . . . . . . . . . 4 1 2 1 1 1 4 . 2 4 3 1 . 4 . 1 3 . 4 Impact Weapon 3 | . . . . . 2 . 1 . . . . . . . . . . . . . . . . . . . . Slashing Weapon . | . . . . . . . . . . . . . . . . . . . . . . . . . . . . Piercing Weapon 38 | . . . . . . . . 5 5 3 1 . 2 1 5 . 2 2 . . . 3 . . 2 4 3 Special Melee Weapon 6 | . . . . . . . 1 3 . . . . . . . . . . . . . . . . 1 . 1 Unidentified Prototypes 8 | . . . . . 1 1 . . . 2 2 . . . . . . . . . . . . . . 1 1 Corrupted Parts 5 | . . . . . . . . . . . . . . . . . . . . . . . . . . 1 4 System Corruption 28 | . . . . . . . . . . . . . . . . . . . . . . . . . . 3 25 Parts Lost 122 | . . 1 1 . 6 . 7 5 3 1 . 2 11 1 2 . 5 6 . 1 . 25 . 5 . 4 36 Power 18 | . . . 1 . 1 . 2 1 . . . . 1 . 1 . 2 2 . . . 2 . . . 1 4 Propulsion 29 | . . . . . 3 . 2 . . . . 2 3 . . . 1 3 . . . 7 . 1 . . 7 Utility 52 | . . 1 . . . . 3 4 3 1 . . 4 . 1 . 2 1 . 1 . 10 . 3 . 2 16 Weapon 23 | . . . . . 2 . . . . . . . 3 1 . . . . . . . 6 . 1 . 1 9 Highest Loss Streak 22 | . . 1 1 . 3 . 3 3 2 1 . 1 9 1 2 . 2 2 . 1 . 22 . 5 . 2 19 To Critical Strikes 2 | . . . . . 1 . . . . . . . . . . . . . . . . 1 . . . . . Average Slot Usage (%) 92 | . 96 92 100 100 99 99 93 96 97 99 93 97 79 91 97 99 97 96 100 99 100 70 31 26 43 75 79 Engine 4 | . 14 14 11 11 9 7 3 1 7 6 . 2 4 6 4 5 5 2 . . . . . . . . . Reactor 1 | . . . . . . . 1 4 . . 5 3 . . . . . 2 1 . . . . . 5 7 6 Leg 21 | . 28 28 33 33 32 . 8 30 29 26 26 24 17 25 26 23 22 20 23 23 21 10 . . . . . Wheel 1 | . . . . . 3 30 19 . . . . . . . . . . . . . . . . . . . . Device 8 | . . . 11 11 9 7 5 3 7 4 6 8 5 11 5 5 6 12 17 16 14 5 . . 4 17 18 Storage 6 | . 14 14 11 11 9 7 7 6 6 6 6 6 6 6 6 4 5 5 5 5 5 2 . . . 2 3 Processor 10 | . 10 12 11 11 9 7 7 5 7 8 13 13 13 13 13 11 11 11 11 11 20 15 14 11 4 11 9 Hackware 18 | . . . . . 9 22 20 19 14 25 13 17 16 13 23 35 31 23 17 17 21 25 14 9 4 13 16 Protection 2 | . . . . . . . 1 6 5 6 6 5 . . . . . 3 5 5 . . . . . . 2 Energy Gun 3 | . 28 21 22 22 12 . . . . . . . 3 5 2 . 5 7 10 5 5 . . . . 1 4 Ballistic Gun 3 | . . . . . 4 10 2 8 4 2 7 1 3 4 . . . 1 . . 5 3 . . . 1 4 Special Weapon 1 | . . . . . . . . . 3 4 . . . . 4 5 2 1 . . . 1 2 1 3 1 1 Piercing Weapon 2 | . . . . . . . . . 5 4 4 4 2 2 5 5 2 . . . . 1 . . 6 4 . Peak Build Rating 148 | . 9 9 17 15 31 39 56 60 60 71 74 77 66 66 72 84 85 78 80 79 85 87 41 52 82 148 146 Average Rating 63 | . 7 7 15 15 21 37 40 52 49 60 68 71 55 63 69 82 76 73 78 77 83 60 29 27 60 125 115 On Entrance 51 | 6 6 9 9 15 15 31 38 56 56 47 71 69 58 49 64 70 84 77 76 79 72 85 30 41 10 82 146 Naked Turns . | . . . . . . . . . . . . . . . . . . . . . . . . . . . . Heaviest Build 168 | 12 13 15 17 15 19 20 37 39 168 58 56 64 44 42 45 46 49 54 63 63 52 49 4 18 33 79 76 Greatest Support 159 | 20 20 20 30 30 48 48 80 85 150 71 71 71 50 70 75 76 76 71 71 71 71 71 26 26 33 159 120 Greatest Overweight (x) 9 | . . . . . . . . . 2 . . . 9 . . . . 1 . . . 9 1 . 1 . 2 Average Overweight (x) . | . . . . . . . . . . . . . . . . . . . . . . . . . . . . Largest Inventory Capacity 30 | . 8 8 8 8 8 8 8 8 30 15 15 15 15 15 15 15 15 15 15 15 15 15 5 5 5 15 15 Average Capacity 11 | . 8 8 8 8 8 8 8 7 8 10 15 15 15 15 15 14 15 15 15 15 15 9 5 5 5 12 14 Most Carried 15 | . 8 8 8 8 8 8 8 8 8 14 14 15 15 12 15 15 15 15 15 15 15 15 5 4 5 15 10 Average Carried 10 | . 5 7 7 8 7 6 8 7 7 8 13 14 12 10 14 14 13 14 14 15 14 6 4 3 4 9 7 Final Capacity 15 | 8 8 8 8 8 8 8 8 8 8 15 15 15 15 15 15 15 15 15 15 15 15 5 5 5 5 15 5 Final Carried 15 | 6 7 7 8 8 8 8 8 7 8 12 14 15 10 12 15 15 13 15 15 15 15 4 5 3 5 10 3 Class Distribution -------------------- 41% | Scavenger-Mutant 28% | Bothacker-Mutant 12% | Mutant 5% | Hacker-Mutant 3% | Hacker-Skirmisher Dominant Class ---------------- Mutant | -10/Materials Mutant | -10/Mines Scavenger-Mutant | -9/Materials Scavenger-Mutant | -9/Mines Scavenger-Mutant | -8/Materials Hacker-Mutant | -7/Factory Mutant | -7/Garrison Scavenger-Mutant | -7/Factory Scavenger-Mutant | -7/Garrison Bothacker-Mutant | -6/Factory Scavenger-Mutant | -6/Waste Scavenger-Mutant | -6/Factory Scavenger-Mutant | -6/Garrison Scavenger-Mutant | -6/Factory Bothacker-Mutant | -6/Garrison Bothacker-Mutant | -5/Factory Bothacker-Mutant | -5/Garrison Bothacker-Mutant | -5/Factory Scavenger-Mutant | -5/Upper Caves Derelict-Mutant | -5/Upper Caves Hacker-Skirmisher | -4/Factory Hacker-Mutant | -4/Garrison Mutant | -3/Research Mutant | -3/Garrison Scavenger-Mutant | -2/Research Scavenger-Assassin | -1/Access Scavenger-Mutant | -1/Garrison Resources | -11 -10 -10 -9 -9 -8 -7 -7 -7 -7 -6 -6 -6 -6 -6 -6 -5 -5 -5 -5 -5 -4 -4 -3 -3 -2 -1 -1 ----------- Run | Yrd Mat Min Mat Min Mat Fac Gar Fac Gar Fac Was Fac Gar Fac Gar Fac Gar Fac Upp Upp Fac Gar Res Gar Res Acc Gar Matter Collected 8056 | 200 20 117 75 10 505 . 290 531 1129 560 239 230 310 27 525 93 349 426 175 51 120 394 . . 254 871 555 Remotely . | . . . . . . . . . . . . . . . . . . . . . . . . . . . . Salvage Created 9864 | . 202 156 176 69 812 . 225 520 1246 443 605 169 333 141 191 . 702 830 199 49 178 305 . . 271 1156 886 Parts 392 | . 13 2 11 3 38 . 14 22 45 18 7 5 16 9 8 . 17 18 8 1 11 13 . . 15 57 41 Haulers Intercepted 8 | . . . . . 2 . . 1 . 2 . . . . . . . . . . . . . . 2 1 . Recyclers Shooed 4 | . 2 . . . 1 . . . . . . . . . . . . 1 . . . . . . . . . Parts Field Recycled . | . . . . . . . . . . . . . . . . . . . . . . . . . . . . Retrieved Matter . | . . . . . . . . . . . . . . . . . . . . . . . . . . . . Parts Self-Destructed 19 | . . . . . . . . . . . . . . . . . . . 18 1 . . . . . . . Prevented . | . . . . . . . . . . . . . . . . . . . . . . . . . . . . Kills | -11 -10 -10 -9 -9 -8 -7 -7 -7 -7 -6 -6 -6 -6 -6 -6 -5 -5 -5 -5 -5 -4 -4 -3 -3 -2 -1 -1 ------- Run | Yrd Mat Min Mat Min Mat Fac Gar Fac Gar Fac Was Fac Gar Fac Gar Fac Gar Fac Upp Upp Fac Gar Res Gar Res Acc Gar Combat Hostiles Destroyed 156 | . 4 15 4 2 18 . 8 6 11 7 1 3 11 2 3 . 10 11 4 2 3 6 . . 1 12 12 Melee 13 | . . . . . . . 2 . 3 1 . . . . 1 . 3 . . . . . . . 1 2 . Guns 111 | . 4 6 4 2 17 . 2 5 8 6 1 1 8 2 2 . 6 10 3 2 3 5 . . . 5 9 Cannons 12 | . . . . . . . 2 1 . . . 2 3 . . . . . . . . . . . . 4 . AOE 11 | . . 9 . . . . 1 . . . . . . . . . . . . . . . . . . . 1 Classes Destroyed 17 | . 3 2 2 . 6 . 1 . 1 . . . . . . . 1 . . . . . . . . . 1 Worker 3 | . . . . . 1 . . 1 . . . . . 1 . . . . . . . . . . . . . Builder 2 | . . . . . 1 . . . . 1 . . . . . . . . . . . . . . . . . Hauler 8 | . . . . . 2 . . 1 . 2 . . . . . . . . . . . . . . 2 1 . Recycler 6 | . . . . . 1 . . 3 . . . . . . . . . 1 . . . . . . . 1 . Operator 5 | . 1 . . . 2 . . . . . . . . . . . . . . . . . . . 1 1 . Watcher 3 | . 1 . . . . . . . . 1 . . . . . . . . . . . . . . . 1 . Swarmer 18 | . . 3 . . 3 . . 3 1 1 . . . . . . 1 . 1 2 . . . . . . 3 Cutter 7 | . . . . . . . 3 . . . . . 4 . . . . . . . . . . . . . . Grunt 57 | . 4 2 2 1 5 . 3 1 3 1 1 1 5 . 2 . 7 9 1 . . 3 . . . 3 3 Brawler 5 | . . . . . 1 . . 2 . 2 . . . . . . . . . . . . . . . . . Duelist 4 | . . . 1 1 . . . . . 1 . . . . . . . . . . . . . . . 1 . Sentry 22 | . . . 1 . 6 . 1 . 2 . . 2 . . . . 1 2 1 . . 1 . . . 1 4 Hunter 16 | . . . . . 3 . 1 . 2 1 . . 2 2 . . . . 1 . . 2 . . . 2 . Programmer 15 | . . . . . . . . . 3 1 . . . . 1 . . . . . 3 . . . 1 5 1 Behemoth 1 | . . . . . . . . . . . . . . . . . 1 . . . . . . . . . . Executioner 1 | . . . . . . . . . . . . . . . . . . . . . . . . . . . 1 Assembled 10 | . . 10 . . . . . . . . . . . . . . . . . . . . . . . . . Best Kill Streak 10 | . 2 10 2 2 4 . 3 4 3 5 1 2 3 2 1 . 4 3 2 2 2 3 . . 2 4 6 Combat Bots Only 10 | . 2 10 2 2 3 . 3 3 3 4 1 2 3 2 1 . 4 3 2 2 2 3 . . 1 4 6 Max Kills in Single Turn 3 | . 1 3 1 1 2 . 1 1 1 2 1 1 1 1 1 . 1 1 1 1 1 1 . . 1 1 1 Gunslinging . | . . . . . . . . . . . . . . . . . . . . . . . . . . . . Exploded 3 | . . 3 . . . . 1 . . . . . . . . . . . . . . . . . . . 1 Melee 1 | . . . . . . . 1 . 1 1 . . . . 1 . 1 . . . . . . . 1 1 . Uniques/NPCs Destroyed . | . . . . . . . . . . . . . . . . . . . . . . . . . . . . Combat | -11 -10 -10 -9 -9 -8 -7 -7 -7 -7 -6 -6 -6 -6 -6 -6 -5 -5 -5 -5 -5 -4 -4 -3 -3 -2 -1 -1 -------- Run | Yrd Mat Min Mat Min Mat Fac Gar Fac Gar Fac Was Fac Gar Fac Gar Fac Gar Fac Upp Upp Fac Gar Res Gar Res Acc Gar Hostile Shots Fired 1945 | . 8 53 15 13 128 . 97 32 118 35 12 73 115 51 26 4 88 74 25 21 18 269 16 84 12 170 388 Missed 596 | . 3 19 5 5 31 . 34 5 40 14 4 42 23 18 10 2 45 18 11 10 3 88 7 28 5 36 90 Damage Taken 25374 | . 61 389 176 142 1373 . 926 742 1032 437 92 750 1568 344 268 31 884 1225 258 159 301 3199 50 1270 162 2833 6702 Core 5811 | . 10 126 . 9 381 . 208 157 111 12 29 16 336 70 68 . 145 190 44 31 40 1095 50 908 162 338 1275 Absorbed by Shields 666 | . . . . . . . . . 25 35 . . 164 . 16 9 45 47 34 . . 59 . . . 232 . Reduced by Siege Mode 858 | . . . . . . . . . . . . . . . . . . . . . . . . . . 360 498 Regen/Repaired (Parts) 293 | . . . . . . . . . . 47 . . . . . 246 . . . . . . . . . . . Core Remaining (%) 51 | 100 . 45 . 97 30 . . . 32 . . . . . 37 . . . . 59 . 1 . 26 88 . . Volleys Fired 640 | . 16 28 9 5 78 . 28 28 39 41 6 18 39 10 21 2 41 49 16 7 11 59 . 2 . 40 47 Largest 3 | . 2 2 2 2 2 . 2 2 2 2 2 2 2 2 2 1 2 2 2 2 2 2 . 1 . 3 3 Hottest 257 | . 115 100 128 128 128 . 73 86 90 56 51 90 160 138 144 5 144 150 166 118 118 142 . 81 . 257 223 Shots Fired 1139 | . 29 45 18 10 156 . 37 58 70 57 11 34 67 19 30 2 60 90 25 10 22 94 . 2 . 87 106 Gun 875 | . 29 40 18 10 156 . 12 51 58 43 8 16 40 18 18 . 39 84 18 6 22 57 . 2 . 45 85 Cannon 152 | . . . . . . . 24 7 . . . 16 24 . . . . . . . . 24 . . . 42 15 Launcher 6 | . . 5 . . . . 1 . . . . . . . . . . . . . . . . . . . . Special 106 | . . . . . . . . . 12 14 3 2 3 1 12 2 21 6 7 4 . 13 . . . . 6 Kinetic 508 | . . . . . 60 . 36 58 54 43 8 32 32 7 4 . . 16 . 3 11 58 . . . 37 49 Thermal 469 | . 29 40 18 10 96 . . . 4 . . . 32 11 14 . 39 68 18 3 11 23 . 2 . 23 28 Explosive 6 | . . 5 . . . . 1 . . . . . . . . . . . . . . . . . . . . Electromagnetic 50 | . . . . . . . . . . . . . . . . . . . . . . . . . . 27 23 Robot Hit Streak 40 | . 7 6 10 15 17 . 8 10 14 21 10 12 27 37 16 11 40 35 13 3 14 15 . 1 . 35 21 Robot Miss Streak 5 | . 3 2 2 3 5 . 1 3 3 3 1 2 3 1 1 . 2 2 2 3 1 4 . 1 . 3 2 Penetration Max 1 | . . . . . . . . . . . . . . . 1 . . 1 . . . 1 . . . . 1 Secondary Targets 8 | . . 2 . . . . . 1 1 . . . 1 . . . 2 . . . . . . . . . 1 Max Gunslinging Chain 1 | . . 1 . . . . . 1 1 . . . 1 . . . 1 . . . . . . . . . 1 Shots Hit Robots 999 | . 17 31 13 10 124 . 26 44 75 59 34 27 58 17 26 3 59 79 17 5 19 73 . 1 5 93 84 Core Hits 494 | . 11 24 6 7 66 . 12 17 33 78 9 9 41 7 9 . 27 34 5 2 8 23 . 1 5 32 28 Critical Kills 6 | . . . . . . . . . 1 . . 2 2 . . . . 1 . . . . . . . . . Critical Parts Destroyed 19 | . . . . . 1 . . . . . . 6 9 . . . . . . . 1 1 . . . . 1 Critical Strikes 68 | . . 5 . 1 2 . . . 3 . 2 9 11 1 1 . 6 9 2 . 1 5 . . . 8 2 Burn 26 | . . 5 . 1 1 . . . . . . . . 1 1 . 3 8 2 . . 2 . . . 2 . Destroy 25 | . . . . . . . . . 1 . . 9 11 . . . . 1 . . 1 1 . . . . 1 Blast 3 | . . . . . . . . . . . . . . . . . . . . . . 2 . . . 1 . Corrupt 1 | . . . . . . . . . . . . . . . . . . . . . . . . . . . 1 Smash 1 | . . . . . 1 . . . . . . . . . . . . . . . . . . . . . . Impale 12 | . . . . . . . . . 2 . 2 . . . . . 3 . . . . . . . . 5 . Melee Attacks 483 | . . . . . 4 . 15 13 120 25 82 9 21 . 66 6 49 4 . . . 12 . . 10 40 7 Impact 16 | . . . . . 4 . 12 . . . . . . . . . . . . . . . . . . . . Slashing . | . . . . . . . . . . . . . . . . . . . . . . . . . . . . Piercing 457 | . . . . . . . . 7 120 25 82 9 21 . 66 6 49 4 . . . 12 . . 10 40 6 Sneak Attacks 20 | . . . . . . . 1 6 4 2 . . . . 1 1 . . . . . . . . 2 2 1 Combat Hostiles 4 | . . . . . . . . . 3 . . . . . 1 . . . . . . . . . . . . Follow-up Attacks 3 | . . . . . . . . . . . . . . . . . . . . . . . . . . 3 . Damage Inflicted 24093 | . 239 1010 215 168 2119 . 695 754 2638 1323 1149 494 1355 296 401 79 1152 1699 272 66 493 1618 . 50 297 2963 2548 Guns 14704 | . 239 362 215 168 2060 . 103 615 550 1060 135 193 1004 296 337 . 730 1698 272 66 493 950 . 24 . 1207 1927 Cannons 2827 | . . . . . . . 265 111 . . . 301 339 . . . . . . . . 435 . . . 1022 354 Explosions 1028 | . . 648 . . . . 114 . . . . . . . . . . . . . . . . . . . 266 Melee 5489 | . . . . . 59 . 213 28 2088 263 1014 . . . 64 79 417 . . . . 233 . . 297 734 . Ramming 45 | . . . . . . . . . . . . . 12 . . . 5 1 . . . . . 26 . . 1 Kinetic 8804 | . . . . . 672 . 368 726 490 1060 135 494 501 105 77 . . 422 . 48 285 1129 . . . 1154 1138 Thermal 7984 | . 239 362 215 168 1388 . . . 60 . . . 842 191 260 . 730 1276 272 18 208 256 . 24 . 604 871 Explosive 762 | . . 648 . . . . 114 . . . . . . . . . . . . . . . . . . . . Electromagnetic 1009 | . . . . . . . . . . . . . . . . . . . . . . . . . . 471 538 Impact 272 | . . . . . 59 . 213 . . . . . . . . . . . . . . . . . . . . Slashing . | . . . . . . . . . . . . . . . . . . . . . . . . . . . . Piercing 5217 | . . . . . . . . 28 2088 263 1014 . . . 64 79 417 . . . . 233 . . 297 734 . Highest Corruption 68 | . . 2 . . . . 5 15 15 5 5 5 . . . . . . . . 5 5 . 5 2 16 68 Average Corruption 11 | . . 2 . . . . 4 5 15 2 5 4 . . . . . . . . 2 5 . 5 2 8 45 Corruption Purged 7 | . . . . . . . . 2 . . . 5 . . . . . . . . . . . . . . . Corruption Blocked . | . . . . . . . . . . . . . . . . . . . . . . . . . . . . Effects 266 | . . 2 . . . . 17 25 100 . 30 3 . . . . . . . . 1 20 . . 2 24 42 Message Errors 64 | . . . . . . . 6 5 25 . 7 2 . . . . . . . . . 6 . . . 5 8 Matter Fused 63 | . . 2 . . . . 3 3 34 . 7 . . . . . . . . . . 1 . . 1 4 8 Heat Flow Errors 24 | . . . . . . . 2 2 10 . 3 . . . . . . . . . . 1 . . . 1 5 Energy Discharges 23 | . . . . . . . 2 4 4 . 4 . . . . . . . . . . 3 . . 1 1 4 Parts Rejected 7 | . . . . . . . 2 . . . . . . . . . . . . . . 3 . . . 2 . Parts Fused 3 | . . . . . . . . 1 1 . . . . . . . . . . . . . . . . . 1 Data Loss (minor) 37 | . . . . . . . 1 5 14 . 4 . . . . . . . . . . 3 . . . 5 5 Data Loss (major) 12 | . . . . . . . . . 7 . 1 1 . . . . . . . . 1 1 . . . 1 . Misfires 13 | . . . . . . . . 4 5 . 3 . . . . . . . . . . . . . . . 1 Alerts 3 | . . . . . . . . 1 . . 1 . . . . . . . . . . . . . . 1 . Misdirections 4 | . . . . . . . . . . . . . . . . . . . . . . . . . . . 4 Weapon Failures 13 | . . . . . . . 1 . . . . . . . . . . . . . . 2 . . . 4 6 Overload Shots . | . . . . . . . . . . . . . . . . . . . . . . . . . . . . Overflow Damage 379 | . . 35 . . 59 . 28 14 83 . . . 10 . . 19 . . . . . 7 . . . 124 . Projectiles 82 | . . . . . . . . 14 . . . . 10 . . . . . . . . . . . . 58 . Explosions 35 | . . 35 . . . . . . . . . . . . . . . . . . . . . . . . . Melee 262 | . . . . . 59 . 28 . 83 . . . . . . 19 . . . . . 7 . . . 66 . Knockbacks 34 | . . . . . 1 . 3 . . . . 5 8 . . . . . . . . 2 . . . 15 . Impact 1 | . . . . . 1 . . . . . . . . . . . . . . . . . . . . . . Kinetic 32 | . . . . . . . 3 . . . . 5 8 . . . . . . . . 2 . . . 14 . Secondary 1 | . . . . . . . . . . . . . . . . . . . . . . . . . . 1 . Self-Inflicted Damage 84 | . . . . . . . . . . . . . . . . . . . . . . . . 17 . . 67 Shots 1 | . . . . . . . . . . . . . . . . . . . . . . . . . . . 1 Rammed 6 | . . . . . . . . . . . . . . . . . . . . . . . . 5 . . 1 Targets Rammed 10 | . . . . . 1 . . . . . . . 1 . . . 1 1 . . . . . 5 . . 1 Kicked 4 | . . . . . 1 . . . . . . . 1 . . . 1 1 . . . . . . . . . Crushed . | . . . . . . . . . . . . . . . . . . . . . . . . . . . . Highest Temperature 347 | . 306 336 95 87 54 . 141 275 261 . 223 8 333 96 33 . 99 22 65 . . 87 . 37 . 347 282 Average Temperature 77 | . 109 125 43 41 18 . 77 78 75 . 99 4 83 32 18 . 35 7 31 . . 29 . 37 . 150 74 Received Heat Transfer 3562 | . 33 109 36 12 396 . 219 54 213 26 57 66 389 9 88 . 178 366 70 . . 431 . 48 . 168 594 Effects 2 | . . 1 . . . . . . 1 . . . . . . . . . . . . . . . . . . Energy Bleed 1 | . . 1 . . . . . . . . . . . . . . . . . . . . . . . . . Interference 1 | . . . . . . . . . 1 . . . . . . . . . . . . . . . . . . Siege Activations 4 | . . . . . . . . . . . . . . . . . . . . . . . . . . 3 1 Total Turns 215 | . . . . . . . . . . . . . . . . . . . . . . . . . . 134 81 Longest Duration 81 | . . . . . . . . . . . . . . . . . . . . . . . . . . 59 81 Robots Corrupted 5 | . . . . . 1 . 1 . . . . . . . . . . . . . . . . . . 1 2 Combat Hostiles 5 | . . . . . 1 . 1 . . . . . . . . . . . . . . . . . . 1 2 Parts Fried 7 | . . . . . . . . . . . . . . . . . . . . . . . . . . 2 5 Impact Corruptions 3 | . . . . . 1 . 2 . . . . . . . . . . . . . . . . . . . . Robots Melted 4 | . . . . . . . . . . . . . . . . . 1 1 1 . . 1 . . . . . Combat Hostiles 4 | . . . . . . . . . . . . . . . . . 1 1 1 . . 1 . . . . . Parts Melted 43 | . 2 3 1 1 4 . . . . . . . . 3 1 . 7 10 3 . 4 1 . . . 2 1 Heat Transferred 17228 | . 666 1443 481 359 2754 . . . 148 . . . 1552 444 570 . 1727 3384 655 50 500 606 . 37 . 925 927 Parts Sabotaged . | . . . . . . . . . . . . . . . . . . . . . . . . . . . . Parts Stolen . | . . . . . . . . . . . . . . . . . . . . . . . . . . . . Parts Stripped . | . . . . . . . . . . . . . . . . . . . . . . . . . . . . Power Chain Reactions 1 | . . . . . . . . . . . . . . . . . . . . . . . . . . . 1 Alert | -11 -10 -10 -9 -9 -8 -7 -7 -7 -7 -6 -6 -6 -6 -6 -6 -5 -5 -5 -5 -5 -4 -4 -3 -3 -2 -1 -1 ------- Run | Yrd Mat Min Mat Min Mat Fac Gar Fac Gar Fac Was Fac Gar Fac Gar Fac Gar Fac Upp Upp Fac Gar Res Gar Res Acc Gar Peak Influence 1209 | . 179 335 266 153 335 69 499 388 1209 673 285 106 345 244 659 433 725 584 . . 180 240 144 208 202 238 316 Initial 634 | . . 69 130 103 59 59 48 261 72 634 218 4 50 170 170 324 153 372 . . 165 63 114 108 117 120 132 Average 321 | . 87 212 210 133 154 59 348 268 586 608 118 23 206 199 480 339 444 448 . . 148 84 122 128 154 153 183 Maximum Alert Level 4 | . . 1 1 . 1 . 2 1 4 2 1 . 1 1 2 2 3 2 . . . 1 . 1 1 1 1 Low Security (%) 38 | . 100 40 28 100 68 100 13 20 15 . 66 100 45 59 3 . 18 . . . 100 88 100 91 96 69 60 Level 1 27 | . . 59 71 . 31 . 42 79 12 . 33 . 54 40 29 84 16 16 . . . 11 . 8 3 30 39 Level 2 27 | . . . . . . . 44 . 37 100 . . . . 66 15 59 83 . . . . . . . . . Level 3 4 | . . . . . . . . . 23 . . . . . . . 6 . . . . . . . . . . Level 4 1 | . . . . . . . . . 10 . . . . . . . . . . . . . . . . . . Level 5 . | . . . . . . . . . . . . . . . . . . . . . . . . . . . . High Security . | . . . . . . . . . . . . . . . . . . . . . . . . . . . . Max Security . | . . . . . . . . . . . . . . . . . . . . . . . . . . . . Squads Dispatched 19 | . 1 . . . 1 . . 2 . 3 . 3 . . . . . 3 . . 1 . . . 1 4 . Investigation 1 | . . . . . . . . . . . . . . . . . . 1 . . . . . . . . . Extermination 6 | . . . . . . . . 1 . 1 . . . . . . . . . . 1 . . . . 3 . Reinforcement 9 | . 1 . . . 1 . . 1 . 1 . 1 . . . . . 2 . . . . . . 1 1 . Assault 1 | . . . . . . . . . . 1 . . . . . . . . . . . . . . . . . Garrison 2 | . . . . . . . . . . . . 2 . . . . . . . . . . . . . . . Intercept . | . . . . . . . . . . . . . . . . . . . . . . . . . . . . Searches Triggered . | . . . . . . . . . . . . . . . . . . . . . . . . . . . . Construction Impeded . | . . . . . . . . . . . . . . . . . . . . . . . . . . . . Haulers Reinforced 2 | . . . . . . . . 1 . . . . . . . . . 1 . . . . . . . . . Active Scanning Responses . | . . . . . . . . . . . . . . . . . . . . . . . . . . . . Cargo Convoy Interrupts . | . . . . . . . . . . . . . . . . . . . . . . . . . . . . Stealth | -11 -10 -10 -9 -9 -8 -7 -7 -7 -7 -6 -6 -6 -6 -6 -6 -5 -5 -5 -5 -5 -4 -4 -3 -3 -2 -1 -1 --------- Run | Yrd Mat Min Mat Min Mat Fac Gar Fac Gar Fac Was Fac Gar Fac Gar Fac Gar Fac Upp Upp Fac Gar Res Gar Res Acc Gar Distress Signals 9 | . 2 1 1 . 3 . . . . . . . . . . 1 . . . . 1 . . . . . . Communications Jammed . | . . . . . . . . . . . . . . . . . . . . . . . . . . . . Distress Signals . | . . . . . . . . . . . . . . . . . . . . . . . . . . . . Times Spotted 363 | . 9 21 8 6 32 . 15 7 24 26 3 11 21 4 20 4 31 19 14 5 9 17 3 15 2 15 22 Peak Tracking Total 11 | . 3 10 3 4 4 . 4 3 7 5 1 5 5 3 4 2 5 4 5 4 3 5 3 10 1 4 11 Tactical Retreats 27 | . . 4 1 . 3 . 1 . . . . . 4 1 1 . 1 . 2 1 . 4 . 3 . . 1 Traps | -11 -10 -10 -9 -9 -8 -7 -7 -7 -7 -6 -6 -6 -6 -6 -6 -5 -5 -5 -5 -5 -4 -4 -3 -3 -2 -1 -1 ------- Run | Yrd Mat Min Mat Min Mat Fac Gar Fac Gar Fac Was Fac Gar Fac Gar Fac Gar Fac Upp Upp Fac Gar Res Gar Res Acc Gar Traps Triggered 21 | . . . . . . . 3 1 2 3 . 2 . . 1 . 2 1 . . 1 3 . . . 1 1 Indirectly . | . . . . . . . . . . . . . . . . . . . . . . . . . . . . Trap Hack Attempts . | . . . . . . . . . . . . . . . . . . . . . . . . . . . . Triggered . | . . . . . . . . . . . . . . . . . . . . . . . . . . . . Disarmed . | . . . . . . . . . . . . . . . . . . . . . . . . . . . . Reprogrammed . | . . . . . . . . . . . . . . . . . . . . . . . . . . . . Reused 5 | . . . . . . . . . . . . . . . . . 4 . . . . 1 . . . . . Traps Extracted . | . . . . . . . . . . . . . . . . . . . . . . . . . . . . Installed 6 | . . . . . . . . . . . . . . . . . 5 . . . . 1 . . . . . Triggered 5 | . . . . . . . . . . . . . . . . . 4 . . . . 1 . . . . . Most Traps Carried 4 | . . . . . . . . . . . . . . . . . 4 2 2 2 2 1 . . . . . Machines | -11 -10 -10 -9 -9 -8 -7 -7 -7 -7 -6 -6 -6 -6 -6 -6 -5 -5 -5 -5 -5 -4 -4 -3 -3 -2 -1 -1 ---------- Run | Yrd Mat Min Mat Min Mat Fac Gar Fac Gar Fac Was Fac Gar Fac Gar Fac Gar Fac Upp Upp Fac Gar Res Gar Res Acc Gar Machines Disabled 32 | . . . . . 2 . 3 2 4 . . 1 . . 3 3 7 3 . . . 2 . . . 1 1 Max in Single Turn 1 | . . . . . 1 . 1 1 1 . . 1 . . 1 . 1 1 . . . 1 . . . 1 1 Garrison Relay 14 | . . . . . . . 3 . 4 . . . . . 3 . 2 . . . . 1 . . . . 1 Machines Repaired . | . . . . . . . . . . . . . . . . . . . . . . . . . . . . Machines Dismantled . | . . . . . . . . . . . . . . . . . . . . . . . . . . . . Machines Sabotaged . | . . . . . . . . . . . . . . . . . . . . . . . . . . . . Overloaded Fab Kills . | . . . . . . . . . . . . . . . . . . . . . . . . . . . . Hacking | -11 -10 -10 -9 -9 -8 -7 -7 -7 -7 -6 -6 -6 -6 -6 -6 -5 -5 -5 -5 -5 -4 -4 -3 -3 -2 -1 -1 --------- Run | Yrd Mat Min Mat Min Mat Fac Gar Fac Gar Fac Was Fac Gar Fac Gar Fac Gar Fac Upp Upp Fac Gar Res Gar Res Acc Gar Machines Accessed 52 | . 3 . 1 . 7 1 2 6 2 2 . 2 . 3 2 2 1 5 . . 6 1 1 . . 4 1 Terminals 36 | . 3 . . . 7 . 2 2 2 . . 1 . 2 2 . 1 4 . . 5 1 . . . 3 1 Fabricators 1 | . . . . . . . . 1 . . . . . . . . . . . . . . . . . . . Repair Stations 3 | . . . 1 . . . . . . 1 . . . . . 1 . . . . . . . . . . . Recycling Units 1 | . . . . . . . . 1 . . . . . . . . . . . . . . . . . . . Scanalyzers 3 | . . . . . . . . 1 . 1 . . . . . . . 1 . . . . . . . . . Garrison Access 8 | . . . . . . 1 . 1 . . . 1 . 1 . 1 . . . . 1 . 1 . . 1 . Total Hacks 124 | . 12 . 2 . 28 1 5 9 3 3 . 4 . 7 3 4 1 12 . . 18 2 1 . . 7 2 Successful 58 | . 6 . . . 17 1 1 6 . 2 . 2 . 3 . 3 1 3 . . 7 1 1 . . 3 1 Failed 66 | . 6 . 2 . 11 . 4 3 3 1 . 2 . 4 3 1 . 9 . . 11 1 . . . 4 1 Catastrophic 20 | . 3 . . . 3 . . 2 2 . . 1 . 2 2 . . 3 . . 1 . . . . 1 . Database Lockouts . | . . . . . . . . . . . . . . . . . . . . . . . . . . . . Manual 57 | . 8 . . . 22 . . . . . . 1 . 5 . . . 9 . . 7 . . . . 5 . Terminals 99 | . 12 . . . 28 . 5 3 3 . . 3 . 5 3 . 1 9 . . 17 2 . . . 6 2 Fabricators 1 | . . . . . . . . 1 . . . . . . . . . . . . . . . . . . . Repair Stations 7 | . . . 2 . . . . . . 2 . . . . . 3 . . . . . . . . . . . Recycling Units 2 | . . . . . . . . 2 . . . . . . . . . . . . . . . . . . . Scanalyzers 5 | . . . . . . . . 1 . 1 . . . . . . . 3 . . . . . . . . . Garrison Access 10 | . . . . . . 1 . 2 . . . 1 . 2 . 1 . . . . 1 . 1 . . 1 . Terminal Hacks 20 | . 3 . . . 10 . 1 1 . . . . . . . . 1 . . . 2 1 . . . . 1 Record 1 | . . . . . . . . . . . . . . . . . . . . . 1 . . . . . . Prototype ID Bank 1 | . . . . . 1 . . . . . . . . . . . . . . . . . . . . . . Open Door 1 | . . . . . . . . . . . . . . . . . . . . . . . . . . . 1 Open DSF 2 | . . . . . . . . 1 . . . . . . . . . . . . 1 . . . . . . Level Access Points 1 | . 1 . . . . . . . . . . . . . . . . . . . . . . . . . . Branch Access Points 1 | . . . . . 1 . . . . . . . . . . . . . . . . . . . . . . Emergency Access Points 2 | . . . . . . . 1 . . . . . . . . . 1 . . . . . . . . . . Alert Level 2 | . . . . . 2 . . . . . . . . . . . . . . . . . . . . . . Unreport Threat 2 | . . . . . 2 . . . . . . . . . . . . . . . . . . . . . . Locate Traps 1 | . . . . . 1 . . . . . . . . . . . . . . . . . . . . . . Transport Status 1 | . . . . . 1 . . . . . . . . . . . . . . . . . . . . . . Hauler Manifests 1 | . . . . . 1 . . . . . . . . . . . . . . . . . . . . . . Zone Layout 3 | . 2 . . . 1 . . . . . . . . . . . . . . . . . . . . . . Garrison Registry 1 | . . . . . . . . . . . . . . . . . . . . . . 1 . . . . . Fabricator Hacks 1 | . . . . . . . . 1 . . . . . . . . . . . . . . . . . . . Network Status 1 | . . . . . . . . 1 . . . . . . . . . . . . . . . . . . . Repair Station Hacks 4 | . . . . . . . . . . 2 . . . . . 2 . . . . . . . . . . . Scan Component 2 | . . . . . . . . . . 1 . . . . . 1 . . . . . . . . . . . Repair 2 | . . . . . . . . . . 1 . . . . . 1 . . . . . . . . . . . Recycling Unit Hacks 2 | . . . . . . . . 2 . . . . . . . . . . . . . . . . . . . Process 1 | . . . . . . . . 1 . . . . . . . . . . . . . . . . . . . Report Inventory 1 | . . . . . . . . 1 . . . . . . . . . . . . . . . . . . . Scanalyzer 1 | . . . . . . . . . . . . . . . . . . 1 . . . . . . . . . Insert Component 1 | . . . . . . . . . . . . . . . . . . 1 . . . . . . . . . Garrison Access Hacks 10 | . . . . . . 1 . 2 . . . 1 . 2 . 1 . . . . 1 . 1 . . 1 . Unlock Access 8 | . . . . . . 1 . 1 . . . 1 . 1 . 1 . . . . 1 . 1 . . 1 . Coupler Status 2 | . . . . . . . . 1 . . . . . 1 . . . . . . . . . . . . . Unauthorized Hacks 20 | . 3 . . . 7 . . . . . . 1 . 1 . . . 2 . . 4 . . . . 2 . Terminals 20 | . 3 . . . 7 . . . . . . 1 . 1 . . . 2 . . 4 . . . . 2 . Botnet 20 | . 3 . . . 7 . . . . . . 1 . 1 . . . 2 . . 4 . . . . 2 . Fabricators . | . . . . . . . . . . . . . . . . . . . . . . . . . . . . Repair Stations . | . . . . . . . . . . . . . . . . . . . . . . . . . . . . Recycling Units . | . . . . . . . . . . . . . . . . . . . . . . . . . . . . Scanalyzers . | . . . . . . . . . . . . . . . . . . . . . . . . . . . . Garrison Access . | . . . . . . . . . . . . . . . . . . . . . . . . . . . . Data Cores Recovered 2 | . 1 . . . 1 . . . . . . . . . . . . . . . . . . . . . . Used . | . . . . . . . . . . . . . . . . . . . . . . . . . . . . Hacking Detections 45 | . 3 . 1 . 7 . 2 5 2 2 . 1 . 3 2 1 1 5 . . 5 1 1 . . 3 . Full Trace Events 2 | . . . . . . . 1 . . . . . . . . . . 1 . . . . . . . . . Feedback Events 2 | . . . . . . . 2 . . . . . . . . . . . . . . . . . . . . Corruption 1 | . . . . . . . 1 . . . . . . . . . . . . . . . . . . . . Hackware Fried 1 | . . . . . . . 1 . . . . . . . . . . . . . . . . . . . . Feedback Blocked . | . . . . . . . . . . . . . . . . . . . . . . . . . . . . Robot Schematics Acquired . | . . . . . . . . . . . . . . . . . . . . . . . . . . . . Robots Built . | . . . . . . . . . . . . . . . . . . . . . . . . . . . . Authchips . | . . . . . . . . . . . . . . . . . . . . . . . . . . . . Time . | . . . . . . . . . . . . . . . . . . . . . . . . . . . . Total Robot Build Rating . | . . . . . . . . . . . . . . . . . . . . . . . . . . . . Part Schematics Acquired . | . . . . . . . . . . . . . . . . . . . . . . . . . . . . Parts Built . | . . . . . . . . . . . . . . . . . . . . . . . . . . . . Authchips . | . . . . . . . . . . . . . . . . . . . . . . . . . . . . Time . | . . . . . . . . . . . . . . . . . . . . . . . . . . . . Total Part Build Rating . | . . . . . . . . . . . . . . . . . . . . . . . . . . . . Parts Repaired 2 | . . . . . . . . . . 1 . . . . . 1 . . . . . . . . . . . Time 52 | . . . . . . . . . . 44 . . . . . 8 . . . . . . . . . . . Parts Recycled . | . . . . . . . . . . . . . . . . . . . . . . . . . . . . Recycled Matter 151 | . . . . . . . . 151 . . . . . . . . . . . . . . . . . . . Retrieved Matter . | . . . . . . . . . . . . . . . . . . . . . . . . . . . . Retrieved Components . | . . . . . . . . . . . . . . . . . . . . . . . . . . . . Parts Scanalyzed 1 | . . . . . . . . . . . . . . . . . . 1 . . . . . . . . . Part Schematics Acquired . | . . . . . . . . . . . . . . . . . . . . . . . . . . . . Parts Damaged 1 | . . . . . . . . . . . . . . . . . . 1 . . . . . . . . . Bothacking | -11 -10 -10 -9 -9 -8 -7 -7 -7 -7 -6 -6 -6 -6 -6 -6 -5 -5 -5 -5 -5 -4 -4 -3 -3 -2 -1 -1 ------------ Run | Yrd Mat Min Mat Min Mat Fac Gar Fac Gar Fac Was Fac Gar Fac Gar Fac Gar Fac Upp Upp Fac Gar Res Gar Res Acc Gar Used RIF Installer 5 | . . . . . . . 1 . 1 . . . 1 . 1 . 1 . . . . . . . . . . Hotswap 1 | . . . . . . . . . . . . . . . 1 . . . . . . . . . . . . Signal Jammer 1 | . . . . . . . . . 1 . . . . . . . . . . . . . . . . . . Zone Cloak 1 | . . . . . . . . . . . . . . . . . 1 . . . . . . . . . . Watcher Feeds 1 | . . . . . . . . . . . . . 1 . . . . . . . . . . . . . . Robots Hacked 67 | . . . . . . . 2 3 9 11 2 1 2 . 8 2 12 3 4 2 . 5 . . . . 1 Non-combat 7 | . . . . . . . . 3 . 2 . . . . . 2 . . . . . . . . . . . Combat 60 | . . . . . . . 2 . 9 9 2 1 2 . 8 . 12 3 4 2 . 5 . . . . 1 Robot Hacks Applied 83 | . . . . . . . 3 4 10 13 2 2 2 . 10 2 15 3 4 2 . 9 . . . . 2 parse_system 1 | . . . . . . . 1 . . . . . . . . . . . . . . . . . . . . find_chute 1 | . . . . . . . . . . 1 . . . . . . . . . . . . . . . . . find_recycling 1 | . . . . . . . . 1 . . . . . . . . . . . . . . . . . . . ignore_parts 6 | . . . . . . . . 3 . 1 . . . . . 2 . . . . . . . . . . . find_shortcuts 2 | . . . . . . . . . . . . . . . 1 . 1 . . . . . . . . . . find_garrison 1 | . . . . . . . . . . 1 . . . . . . . . . . . . . . . . . scatter_targeting 3 | . . . . . . . . . . 1 . . . . 1 . . . 1 . . . . . . . . mark_system 1 | . . . . . . . . . . . . 1 . . . . . . . . . . . . . . . disrupt_area 17 | . . . . . . . . . 1 5 . 1 . . . . 3 . . 2 . 3 . . . . 2 overload_power 1 | . . . . . . . . . 1 . . . . . . . . . . . . . . . . . . amplify_resonance 11 | . . . . . . . . . 3 . . . 1 . 1 . 3 . 3 . . . . . . . . disable_weapons 5 | . . . . . . . . . . . . . . . . . 1 1 . . . 3 . . . . . go_dormant 4 | . . . . . . . . . . . . . . . 1 . 3 . . . . . . . . . . overwrite_iff 7 | . . . . . . . . . . 1 . . . . 2 . 1 . . . . 3 . . . . . streamctrl_high 5 | . . . . . . . 2 . 1 . 1 . 1 . . . . . . . . . . . . . . formatsys_high 17 | . . . . . . . . . 4 3 1 . . . 4 . 3 2 . . . . . . . . . Relay Couplers Released 56 | . . . . . . . 11 . 16 . . . . . 14 . 7 . . . . 4 . . . . 4 Machine Destruction 56 | . . . . . . . 11 . 16 . . . . . 14 . 7 . . . . 4 . . . . 4 Attached 31 | . . . . . . . 4 . 8 1 . . . . 6 1 2 . . . . 5 . . . . 4 Fabnet Peak Effective % . | . . . . . . . . . . . . . . . . . . . . . . . . . . . . Robots Rewired 4 | . . . . . . . . . . . . . . . . . . . . . . . . . . . 4 Allies Hacked . | . . . . . . . . . . . . . . . . . . . . . . . . . . . . Hacks Repelled . | . . . . . . . . . . . . . . . . . . . . . . . . . . . . Allies | -11 -10 -10 -9 -9 -8 -7 -7 -7 -7 -6 -6 -6 -6 -6 -6 -5 -5 -5 -5 -5 -4 -4 -3 -3 -2 -1 -1 -------- Run | Yrd Mat Min Mat Min Mat Fac Gar Fac Gar Fac Was Fac Gar Fac Gar Fac Gar Fac Upp Upp Fac Gar Res Gar Res Acc Gar Total Allies 33 | . . . . . . . 2 . 5 4 2 . 1 . 6 . 4 2 . . . 3 . . . . 4 Largest Group 5 | . . . . . . . 2 . 3 4 1 1 1 . 5 3 3 1 1 . . 1 . . . . 4 Highest-Rated Group 223 | . . . . . . . 64 . 64 96 32 32 12 . 151 90 73 49 41 . . 49 . . . . 223 Highest-Rated Ally 119 | . . . . . . . 32 . 32 41 32 32 12 . 32 32 49 49 41 . . 49 . . . . 119 Total Orders 2 | . . . . . . . . . . . . . . . . . . . . . . . . . . . 2 ROAM 1 | . . . . . . . . . . . . . . . . . . . . . . . . . . . 1 FOLLOW 1 | . . . . . . . . . . . . . . . . . . . . . . . . . . . 1 Ally Attacks 122 | . . . . . . . 4 . 16 33 . 6 2 . 13 2 10 16 8 . . 8 . . . . 4 Total Damage 3960 | . . . . . . . 211 . 283 763 . 231 34 . 226 595 205 855 336 . . 90 . . . . 131 Kills 31 | . . . . . . . 1 . 2 9 . 2 2 . 3 2 2 4 3 . . . . . . . 1 Allies Corrupted 2 | . . . . . . . . . . . . . . . 1 1 . . . . . . . . . . . Allies Melted . | . . . . . . . . . . . . . . . . . . . . . . . . . . . . Intel | -11 -10 -10 -9 -9 -8 -7 -7 -7 -7 -6 -6 -6 -6 -6 -6 -5 -5 -5 -5 -5 -4 -4 -3 -3 -2 -1 -1 ------- Run | Yrd Mat Min Mat Min Mat Fac Gar Fac Gar Fac Was Fac Gar Fac Gar Fac Gar Fac Upp Upp Fac Gar Res Gar Res Acc Gar Robot Analysis Total . | . . . . . . . . . . . . . . . . . . . . . . . . . . . . Derelict Logs Recovered 2 | . . 1 . . . . . . . . . . . . . . . . 1 . . . . . . . . Drone Launches . | . . . . . . . . . . . . . . . . . . . . . . . . . . . . Drone Recoveries . | . . . . . . . . . . . . . . . . . . . . . . . . . . . . Exploration | -11 -10 -10 -9 -9 -8 -7 -7 -7 -7 -6 -6 -6 -6 -6 -6 -5 -5 -5 -5 -5 -4 -4 -3 -3 -2 -1 -1 ------------- Run | Yrd Mat Min Mat Min Mat Fac Gar Fac Gar Fac Was Fac Gar Fac Gar Fac Gar Fac Upp Upp Fac Gar Res Gar Res Acc Gar Turns Passed 16746 | . 238 273 269 77 921 147 619 849 2514 904 1189 509 570 371 1122 501 1166 931 578 68 506 545 27 81 184 994 593 Spaces Moved 10513 | 1 142 152 175 44 492 153 467 537 1588 533 726 253 279 253 649 358 691 485 428 43 333 256 31 121 296 837 190 Core 216 | . . . . . . . . . . . . . 1 . . . . . . . . 66 28 73 41 . 7 Treads 456 | . . . . . . . . . 15 . . . . . . . . . . . . . . . . 258 183 Legs 8429 | 1 142 152 175 44 439 . 146 537 1573 533 726 253 278 253 649 358 691 485 428 43 333 190 . . . . . Wheels 527 | . . . . . 53 153 321 . . . . . . . . . . . . . . . . . . . . Hover 117 | . . . . . . . . . . . . . . . . . . . . . . . 3 48 66 . . Flight 768 | . . . . . . . . . . . . . . . . . . . . . . . . . 189 579 . Fastest Speed 31 | 120 120 120 120 120 90 90 90 120 120 120 120 120 120 120 122 122 122 120 120 120 120 50 50 50 34 31 50 Average Speed 114 | 120 120 120 120 120 116 90 99 120 122 120 120 120 124 121 122 122 122 136 120 120 120 113 78 53 42 73 172 Slowest Speed 500 | 120 120 120 120 120 120 90 120 122 320 120 120 120 500 122 122 122 123 195 120 120 120 500 100 60 120 170 320 Overloaded Moves . | . . . . . . . . . . . . . . . . . . . . . . . . . . . . Propulsion Burnouts . | . . . . . . . . . . . . . . . . . . . . . . . . . . . . Robots Hopped 1 | . . . . . . . . . . . . . . . . . . . . . . . . . . 1 . Cave-ins Triggered . | . . . . . . . . . . . . . . . . . . . . . . . . . . . . Exploration Rate (%) 29 | 1 32 32 21 17 40 4 51 12 92 13 99 8 40 8 72 8 49 13 65 10 9 35 2 35 11 20 25 Regions Visited 27 Branch Regions 4 Pre-discovered Areas 1 | . . 1 . . . . . . . . . . . . . . . . . . . . . . . . . Known Exits Taken 9 | . . 1 . . . 1 . 1 . . . 1 . 1 . 1 . . . . 1 . 1 . . 1 . Unknown Exits Taken 9 | 1 1 . 1 1 1 . . . . . . . . . . . . 1 1 1 . . . . 1 . . Scrap Searched 5 | . . 1 . . . . . . . . . . . . . . . . 4 . . . . . . . . Spaces Dug 187 | . . . . . 3 . . 5 43 18 31 8 17 . 28 4 13 3 . . . 3 . . 2 7 2 Terrain Destroyed 303 | . . 45 . . 3 . 11 27 43 18 31 11 21 . 29 4 13 4 . 1 2 10 . . 2 10 18 Melee 187 | . . . . . 3 . . 5 43 18 31 8 17 . 28 4 13 3 . . . 3 . . 2 7 2 Projectile 34 | . . . . . . . . 7 . . . 3 4 . 1 . . 1 . 1 2 7 . . . 3 5 AOE 82 | . . 45 . . . . 11 15 . . . . . . . . . . . . . . . . . . 11 Terrain Rammed 1 | . . . . . . . . . . . . . . . . . . . . . . . . 1 . . . Walls Destroyed . | . . . . . . . . . . . . . . . . . . . . . . . . . . . . Machines Disabled . | . . . . . . . . . . . . . . . . . . . . . . . . . . . . Actions | -11 -10 -10 -9 -9 -8 -7 -7 -7 -7 -6 -6 -6 -6 -6 -6 -5 -5 -5 -5 -5 -4 -4 -3 -3 -2 -1 -1 --------- Run | Yrd Mat Min Mat Min Mat Fac Gar Fac Gar Fac Was Fac Gar Fac Gar Fac Gar Fac Upp Upp Fac Gar Res Gar Res Acc Gar Total 13264 | . 182 197 215 58 685 162 556 688 1877 696 869 405 380 293 818 409 862 655 470 51 417 395 33 135 335 1069 352 Wait 697 | . 13 9 16 8 44 . 7 65 41 52 6 100 9 20 32 17 21 59 2 . 56 12 . 1 . 75 32 Move 10484 | . 141 151 174 43 491 152 465 537 1586 533 725 253 278 252 648 357 689 484 427 42 333 254 31 119 295 834 190 Hop 1 | . . . . . . . . . . . . . . . . . . . . . . . . . . 1 . Pick Up 134 | . 5 1 3 . 14 . 3 6 10 8 2 5 3 3 10 13 14 9 2 . 3 3 . . 4 10 3 Fast Attach 184 | . 1 2 1 . 4 3 15 6 23 4 4 4 7 3 4 5 4 10 5 . 3 12 1 . 14 31 18 Attach 99 | . . 1 3 . 10 2 . 4 1 8 1 4 7 1 3 2 7 3 1 . 3 14 . 4 2 6 12 Detach 36 | . . 1 . . 1 2 . 1 2 3 1 2 1 . 2 . 2 1 . . 1 3 1 2 3 3 4 Swap 209 | . 1 2 5 1 17 1 8 17 21 13 6 6 10 4 21 1 14 20 9 2 3 7 . . 1 12 7 Drop 212 | . 5 2 4 1 21 2 9 11 32 9 4 4 4 . 11 6 14 15 8 . 4 9 . 1 6 21 9 Fire 640 | . 16 28 9 5 78 . 28 28 39 41 6 18 39 10 21 2 41 49 16 7 11 59 . 2 . 40 47 Melee 479 | . . . . . 4 . 15 13 120 25 82 9 21 . 66 6 49 4 . . . 12 . . 10 36 7 Ram 8 | . . . . . . . . . . . . . . . . . . . . . . . . 6 . . 2 Kick 4 | . . . . . 1 . . . . . . . 1 . . . 1 1 . . . . . . . . . Crush . | . . . . . . . . . . . . . . . . . . . . . . . . . . . . Escape Stasis 19 | . . . . . . . 6 . 2 . . . . . . . . . . . . 9 . . . . 2 Rewire 52 | . . . . . . . . . . . 32 . . . . . 1 . . . . . . . . . 19 Trap 6 | . . . . . . . . . . . . . . . . . 5 . . . . 1 . . . . . Miscellaneous . | . . . . . . . . . . . . . . . . . . . . . . . . . . . . Route ------- -11/Scrapyard -10/Materials (discovered 4 exits: Mat x3 / [*Min]) -10/Mines -9/Materials -9/Mines -8/Materials (discovered 3 exits: *Fac / Sto x2) -7/Factory (discovered 2 exits: [*Low] / Gar) -7/Garrison -7/Factory -7/Garrison (discovered 3 exits: *Fac x3) -6/Factory -6/Waste -6/Factory -6/Garrison -6/Factory -6/Garrison (discovered 2 exits: *Fac x2) -5/Factory -5/Garrison -5/Factory -5/Upper Caves -5/Upper Caves -4/Factory (discovered 2 exits: *Ext / Gar) -4/Garrison (discovered 3 exits: *Res x3) -3/Research -3/Garrison -2/Research (discovered 2 exits: *Acc / [*Tes]) -1/Access -1/Garrison History --------- Turn | Location | Event 1 | -11/Scrapyard | Discovered new exit (range 0) 1 | -11/Scrapyard | Entered Materials 162 | -10/Materials | Discovered new exit (range 17) 162 | -10/Materials | Identified exit to Materials 239 | -10/Materials | Entered Mines 240 | -10/Mines | Assembled infested the area 245 | -10/Mines | Assisted by a Guerilla fighting off Assembled 246 | -10/Mines | Received a Rocket Launcher from a helpful Derelict 283 | -10/Mines | Destroyed 10 combat bots 313 | -10/Mines | Build established: Mutant 470 | -10/Mines | Discovered exit to Materials (range 11) 471 | -10/Mines | Learned location of Zion (-7) 504 | -10/Mines | Core integrity fell below 50% 512 | -10/Mines | Entered Materials 512 | -9/Materials | Evolved 2 slots: Propulsion x1, Utility x1 746 | -9/Materials | Discovered new exit (range 13) 781 | -9/Materials | Entered Mines 853 | -9/Mines | Discovered new exit (range 4) 858 | -9/Mines | Entered Materials 858 | -8/Materials | Evolved 2 slots: Propulsion x1, Utility x1 880 | -8/Materials | Build established: Scavenger-Mutant 918 | -8/Materials | Identified exit to Storage 1286 | -8/Materials | Lost 3 parts (1n2w) 1626 | -8/Materials | Core integrity fell below 50% 1725 | -8/Materials | Discovered new exit (range 6) 1779 | -8/Materials | Entered Factory 1779 | -7/Factory | Evolved 2 slots: Utility x2 1808 | -7/Factory | Discovered new exit (range 12) 1925 | -7/Factory | Identified exit to Garrison 1926 | -7/Factory | Entered Garrison 1935 | -7/Garrison | Installed Relay Interface Framework 1984 | -7/Garrison | Hacking Suite fried by hacking feedback 2002 | -7/Garrison | Triggered checkpoint 2010 | -7/Garrison | Garrison Relay disabled 2080 | -7/Garrison | Triggered checkpoint 2160 | -7/Garrison | Garrison Relay disabled 2176 | -7/Garrison | Triggered checkpoint 2271 | -7/Garrison | Garrison Relay disabled 2297 | -7/Garrison | Build established: Mutant 2303 | -7/Garrison | Discovered new exit (range 13) 2368 | -7/Garrison | Lost 3 parts (1p2n) 2545 | -7/Garrison | Entered Factory 2662 | -7/Factory | Build established: Scavenger-Mutant 3200 | -7/Factory | System corruption reached 10% 3212 | -7/Factory | Core integrity fell below 50% 3244 | -7/Factory | Lost 3 parts (3u) 3394 | -7/Factory | Identified exit to Garrison 3394 | -7/Factory | Entered Garrison 3457 | -7/Garrison | Build established: Mutant 3732 | -7/Garrison | Triggered checkpoint 3775 | -7/Garrison | Garrison Relay disabled 3856 | -7/Garrison | Triggered checkpoint 3900 | -7/Garrison | Discovered new exit (range 10) 4040 | -7/Garrison | Triggered checkpoint 4339 | -7/Garrison | Build established: Scavenger-Mutant 4383 | -7/Garrison | Garrison Relay disabled 4404 | -7/Garrison | Triggered checkpoint 4425 | -7/Garrison | Discovered new exit (range 3) 4495 | -7/Garrison | Expanded RIF knowledge: Signal Jamming 4761 | -7/Garrison | Discovered new exit (range 12) 4864 | -7/Garrison | Triggered checkpoint 5046 | -7/Garrison | Garrison Relay disabled 5172 | -7/Garrison | Triggered checkpoint 5196 | -7/Garrison | Garrison Relay disabled 5908 | -7/Garrison | Entered Factory 5908 | -6/Factory | Accompanied by 3 allies 5908 | -6/Factory | Evolved 2 slots: Utility x2 6153 | -6/Factory | Build established: Bothacker-Mutant 6201 | -6/Factory | Repaired Remote Datajack 6436 | -6/Factory | Found Prototype Processor 6436 | -6/Factory | Identified Exp. Targeting Computer 6440 | -6/Factory | Found Exp. Targeting Computer 6443 | -6/Factory | Found Exp. Targeting Computer 6518 | -6/Factory | Lost 5 allies 6574 | -6/Factory | Found Prototype Launcher 6608 | -6/Factory | First assault squad dispatched 6705 | -6/Factory | Identified Rocket Array 6812 | -6/Factory | Sucked down chute 6812 | -6/Factory | Entered Waste 6812 | -6/Waste | The area was eerily silent 6855 | -6/Waste | Found Prototype Device 6887 | -6/Waste | Identified Exp. Shield Generator 6908 | -6/Waste | Discovered new exit (range 16) 6957 | -6/Waste | Build established: Scavenger-Mutant 7088 | -6/Waste | Found Prototype Processor 7088 | -6/Waste | Identified Exp. Terrain Scan Processor 8001 | -6/Waste | Entered Factory 8001 | -6/Factory | Accompanied by 1 ally 8370 | -6/Factory | Garrison activated, responded to threat 8510 | -6/Factory | Identified exit to Garrison 8510 | -6/Factory | Entered Garrison 8826 | -6/Garrison | Triggered checkpoint 8858 | -6/Garrison | Triggered checkpoint 8932 | -6/Garrison | Lost 9 parts (1p3n2u3w) 8998 | -6/Garrison | Expanded RIF knowledge: Watcher Feeds 9031 | -6/Garrison | Discovered new exit (range 14) 9054 | -6/Garrison | Triggered checkpoint 9080 | -6/Garrison | Entered Factory 9292 | -6/Factory | Core integrity fell below 50% 9300 | -6/Factory | Spotted B-75 Beast 9446 | -6/Factory | Identified exit to Garrison 9451 | -6/Factory | Entered Garrison 9487 | -6/Garrison | Triggered checkpoint 9552 | -6/Garrison | Garrison Relay disabled 9849 | -6/Garrison | Triggered checkpoint 9902 | -6/Garrison | Discovered new exit (range 8) 9913 | -6/Garrison | Build established: Bothacker-Mutant 9971 | -6/Garrison | Triggered checkpoint 10065 | -6/Garrison | Garrison Relay disabled 10239 | -6/Garrison | Triggered checkpoint 10341 | -6/Garrison | Triggered checkpoint 10366 | -6/Garrison | Expanded RIF knowledge: Hotswap 10390 | -6/Garrison | Garrison Relay disabled 10485 | -6/Garrison | Discovered new exit (range 3) 10573 | -6/Garrison | Entered Factory 10573 | -5/Factory | Accompanied by 3 allies 10573 | -5/Factory | Evolved 2 slots: Utility x2 10903 | -5/Factory | Repaired Lrg. Storage Unit 11064 | -5/Factory | Identified exit to Garrison 11074 | -5/Factory | Entered Garrison 11266 | -5/Garrison | Triggered checkpoint 11335 | -5/Garrison | Spotted B-75 Beast 11417 | -5/Garrison | Garrison Relay disabled 11422 | -5/Garrison | Heavy support dispatched to Factory 11806 | -5/Garrison | Destroyed B-75 Beast 11912 | -5/Garrison | Triggered checkpoint 12098 | -5/Garrison | Expanded RIF knowledge: Zone Cloak 12116 | -5/Garrison | Triggered checkpoint 12137 | -5/Garrison | Garrison Relay disabled 12224 | -5/Garrison | Discovered new exit (range 10) 12240 | -5/Garrison | Entered Factory 12240 | -5/Factory | Accompanied by 1 ally 12359 | -5/Factory | Spotted B-75 Beast 13053 | -5/Factory | Discovered new exit (range 14) 13171 | -5/Factory | Entered Upper Caves 13171 | -5/Upper Caves | Accompanied by 1 ally 13253 | -5/Upper Caves | Attracted the attention of an 0b10 checkpoint 13365 | -5/Upper Caves | Found DCF Scrap (14 items) 13453 | -5/Upper Caves | Learned Factory terminal intel 13562 | -5/Upper Caves | Build established: Scavenger-Mutant 13708 | -5/Upper Caves | Discovered new exit (range 6) 13749 | -5/Upper Caves | Entered another Upper Caves area 13793 | -5/Upper Caves | Discovered new exit (range 3) 13817 | -5/Upper Caves | Entered Factory 13817 | -4/Factory | Evolved 2 slots: Utility x2 13818 | -4/Factory | Loaded intel: 27 terminal locations 13938 | -4/Factory | Identified exit to DSF 14041 | -4/Factory | Discovered new exit (range 21) 14065 | -4/Factory | Identified exit to Extension 14103 | -4/Factory | Build established: Hacker-Skirmisher 14323 | -4/Factory | Identified exit to Garrison 14323 | -4/Factory | Entered Garrison 14455 | -4/Garrison | Triggered checkpoint 14553 | -4/Garrison | Core integrity fell below 50% 14587 | -4/Garrison | Spotted B-86 Titan 14612 | -4/Garrison | Lost 22 parts (2p7n7u6w) 14650 | -4/Garrison | Garrison Relay disabled 14684 | -4/Garrison | Found Unknown Device 14684 | -4/Garrison | Identified Heavy Servo Lattice 14687 | -4/Garrison | Found Heavy Servo Lattice 14694 | -4/Garrison | Discovered new exit (range 72) 14694 | -4/Garrison | Discovered new exit (range 23) 14694 | -4/Garrison | Discovered new exit (range 72) 14743 | -4/Garrison | Triggered checkpoint 14819 | -4/Garrison | Triggered checkpoint 14822 | -4/Garrison | Core integrity fell below 20% 14863 | -4/Garrison | Lost 3 parts (3u) 14866 | -4/Garrison | Identified exit to Research 14868 | -4/Garrison | Entered Research 14868 | -3/Research | Evolved 2 slots: Power x1, Weapon x1 14879 | -3/Research | Spotted B-86 Titan 14895 | -3/Research | Identified exit to Garrison 14895 | -3/Research | Entered Garrison 14943 | -3/Garrison | Core integrity fell below 50% 14949 | -3/Garrison | Spotted B-86 Titan 14953 | -3/Garrison | Triggered checkpoint 14969 | -3/Garrison | Discovered new exit (range 13) 14976 | -3/Garrison | Entered Research 14976 | -2/Research | Evolved 2 slots: Utility x2 14987 | -2/Research | Lost 5 parts (1n3u1w) 15114 | -2/Research | Discovered new exit (range 20) 15126 | -2/Research | Discovered new exit (range 24) 15160 | -2/Research | Entered Access 15160 | -1/Access | Evolved 2 slots: Utility x2 15946 | -1/Access | System corruption reached 10% 16152 | -1/Access | Identified exit to Garrison 16154 | -1/Access | Entered Garrison 16288 | -1/Garrison | Spotted Executioner 16313 | -1/Garrison | Destroyed Executioner 16334 | -1/Garrison | System corruption reached 30% 16357 | -1/Garrison | Core integrity fell below 50% 16398 | -1/Garrison | Lost 19 parts (2p2n9u6w) 16439 | -1/Garrison | Rewired Executioner 16501 | -1/Garrison | Garrison Relay disabled 16688 | -1/Garrison | Spotted B-99 Colossus 16714 | -1/Garrison | Lost 3 allies 16742 | -1/Garrison | Core integrity fell below 20% 16747 | -1/Garrison | Destroyed by G-73 Enforcer with Phase Gun Last Messages --------------- 16735_ Xenon Bombardment Thruster destroyed. 16736_ P-80 Master repels hacking attempt. 16736_ Adv. Heat Sink destroyed. 16737_ Jacked G-73 Enforcer... >>disrupt_area Initiated network disruption routine. 16738_ Imp. Remote Datajack destroyed. 16738_ P-80 Master resets G-73 Enforcer, behavior restored. 16739_ P-80 Master repels hacking attempt. 16742_ B-99 Colossus exits siege mode. 16742_ Dropped Lance. 16743_ Dropped Adv. Remote Datajack. 16744_ #>S#T0G8OJMKJL/S6A1:RZNUQ< 16745_ Penetrated by Slug. 16745_ Graphene Brace destroyed. 16745_ Slug penetrates Wall. 16745_ Penetrated by Slug. 16745_ Imp. Hacking Suite destroyed. 16745_ Slug penetrates Wall. 16747_ Relay Coupler [Grunt] destroyed. Map ----- +----------------------------------------------------+ | ?????????????????????????????????????????????????? | | ?????????????????????????????????????????????????? | | ?????????????????????????????????????????????????? | | ???????????????????????? #??????????????????????? | | ??????????????????????? ??????????????????????? | | ??????????????????? ??? ??????????????????????? | | ????????????????? ? ??????????????????????? | | ?????????????????? ?# ??????????????????????? | | ??????????????? ## ## #?????????????????????? | | ?????????????? "?????????????????????? | | ?????????????? "?????????????????????? | | ??????????????? "?????????????????????? | | ???????????????? "?????????????????????? | | ?????????????????# ;; *#?###?????????????????? | | ???????????## ## ;# =%#?# #?????????????????? | | ??????? [%=##"##??????????????### | | ??????? */% =*"#??????????????# | | ????????????# BB!###=##??????????????# | | ????????????## ##""""#;BB!;?#%###############?### | | ??????????????????????#; ###=! ### | | ???????????????????????# ;##=############# ## | | ???????????????????????# ;##*#???????????# ## | | ???????????????????????# ;!![#???????????# ### | | ???????????????????????# g ;=#???#???????# #?## | | ???????????????????????# g##%#####T#######"#### | | ???????????????????????# @ g sp/% % | | ???????????????????????# pg g| =%! | | ???????????????????????# ^ *!== | | ???????????????????????#######+;###########*= #### | | ?????????????????????????????# #??????# #|%#??? | | ?????????????????????????????# #??????# "/=#??? | | ?????????????????????????????#""########"/""% #??? | | ?????????????????????????????# [=! #??? | | ?????????????????????????????# ==[= #??? | | ?????????????????????????????## ##### [ #"""#??? | | ?????????????????????????????#"" "#??# #=# #??? | | ?????????????????????????????#######??####### #??? | | ????????????????????????????????????????????#=#??? | | ????????????????????????????????????????##### #### | | ????????????????????????????????????????#"""" """" | | ????????????????????????????????????????#" " | | ????????????????????????????????????????#"""" """" | | ????????????????????????????????????????#"""" """" | | ????????????????????????????????????????#" " | | ????????????????????????????????????????#"""" """" | | ????????????????????????????????????????########## | | ?????????????????????????????????????????????????? | | ?????????????????????????????????????????????????? | | ?????????????????????????????????????????????????? | | ?????????????????????????????????????????????????? | +----------------------------------------------------+ Best States ------------- Heat Dissipation 109 Energy Generation 43 Energy Capacity 430 Matter Stores 300 Matter Capacity 300 Sight Range 22 Robot Scan Range 16 Terrain Scan Range 20 Terrain Scan Density 10 ECM Strength 2 Jamming Range 12 Cloak Strength 2 Additional Mass Support 9 Armor Coverage 600 Resistance: KI 25 Point Defense Rating 80 Weapon Cycling 15 Evasion (%) 65 Targeting Accuracy 24 Target Analysis 8 Recoil Reduction 4 Kinecelleration 40 Offensive Hacking 36 Defensive Hacking 12 Relay Coupler Types 5 Relay Coupler Value 144 Item Schematics ----------------- None Robot Schematics ------------------ None Fabricated ------------ Nothing Alien Tech Used ----------------- None Achievements -------------- No Signal Pwned Tank Challenges ------------ None Game ------ Seed AccelerationServoEdition Manual? 0 Play Time 04:51:45 Cumulative 76.3 hours Start 2024.11.07 @ 17:34:59 End 2024.11.08 @ 21:09:12 Sessions 7 Manual Loads 0 Difficulty Rogue Special Mode None Game No. 52 Rogue 52 Adventurer 0 Explorer 0 Win Type - Total 1 Types 1/0/0/0/0/0/0/0/0 Lore% 24 Gallery% 49 Achievement% 39 Wizard Run 0 Options --------- Layout 0 ASCII 0 Keyboard 0 Movement Arrows Keybinds 0 Fullscreen 2 Font 18/X11 Map View 76x50 Zoom Use 0% Tactical HUD 1 Map Filters NONE Filters NONE Steam 0 RUN: 7893cece-f5f1-49b2-a7a6-364d5d54a9c7